{"text_format":"3","workbook":"xlsx","n_sheets":1,"sheets":["Porodični mesečni budžet"],"not_rendered":{"defined_names":1},"read":"whole","date_system":"1900"}

{"sheet":"Porodični mesečni budžet","index":0,"n_rows":68,"n_cols":9,"rows_kept":68,"merged":[[0,0,0,6],[2,0,2,1],[2,5,2,6],[8,5,8,6],[18,0,18,3],[27,5,27,8],[29,0,29,3],[36,0,36,3],[37,5,37,8],[42,0,42,3],[44,5,44,8],[54,0,54,3],[54,5,54,8],[61,0,61,3],[62,5,62,8]]}
["Porodični mesečni budžet"]
[]
["Ukupni predviđeni trošak",null,"Ukupni stvarni trošak","Ukupna razlika",null,"Predviđeni mesečni prihod"]
[null,{"$f":"Housing[[#Totals],[Predviđeni trošak]]+Transportation[[#Totals],[Predviđeni trošak]]+Insurance[[#Totals],[Predviđeni trošak]]+Food[[#Totals],[Predviđeni trošak]]+Children[[#Totals],[Predviđeni trošak]]+Legal[[#Totals],[Predviđeni trošak]]+Savings[[#Totals],[Predviđeni trošak]]+Loans[[#Totals],[Predviđeni trošak]]+Entertainment[[#Totals],[Predviđeni trošak]]+Taxes[[#Totals],[Predviđeni trošak]]+PersonalCare[[#Totals],[Predviđeni trošak]]+Pets[[#Totals],[Predviđeni trošak]]+Gifts[[#Totals],[Predviđeni trošak]]","v":{"v":1203,"d":"1,203 Din."}},{"$f":"Housing[[#Totals],[Stvarni trošak]]+Transportation[[#Totals],[Stvarni trošak]]+Insurance[[#Totals],[Stvarni trošak]]+Food[[#Totals],[Stvarni trošak]]+Children[[#Totals],[Stvarni trošak]]+Legal[[#Totals],[Stvarni trošak]]+Savings[[#Totals],[Stvarni trošak]]+Loans[[#Totals],[Stvarni trošak]]+Entertainment[[#Totals],[Stvarni trošak]]+Taxes[[#Totals],[Stvarni trošak]]+PersonalCare[[#Totals],[Stvarni trošak]]+Pets[[#Totals],[Stvarni trošak]]+Gifts[[#Totals],[Stvarni trošak]]","v":{"v":1317,"d":"1,317 Din."}},{"$f":"Housing[[#Totals],[Razlika]]+Transportation[[#Totals],[Razlika]]+Insurance[[#Totals],[Razlika]]+Food[[#Totals],[Razlika]]+Children[[#Totals],[Razlika]]+Legal[[#Totals],[Razlika]]+Savings[[#Totals],[Razlika]]+Loans[[#Totals],[Razlika]]+Entertainment[[#Totals],[Razlika]]+Taxes[[#Totals],[Razlika]]+PersonalCare[[#Totals],[Razlika]]+Pets[[#Totals],[Razlika]]+Gifts[[#Totals],[Razlika]]","v":{"v":-114,"d":"114 Din."}},null,"Prihod 1",{"v":4000,"d":"4,000 Din."}]
[{"$nulls":5},"Prihod 2",{"v":1200,"d":"1,200 Din."}]
["Domaćinstvo","Predviđeni trošak","Stvarni trošak","Razlika",null,"Dodatni prihod",{"v":300,"d":"300 Din."}]
["Hipoteka ili zakup",{"v":1000,"d":"1,000 Din."},{"v":1000,"d":"1,000 Din."},{"$f":"Housing[Predviđeni trošak]-Housing[Stvarni trošak]","v":0},null,"Ukupni mesečni prihod",{"$f":"SUM(G4:G6)","v":{"v":5500,"d":"5,500 Din."}}]
["Druga hipoteka ili zakup",0,0,{"$f":"Housing[Predviđeni trošak]-Housing[Stvarni trošak]","v":0}]
["Telefon",{"v":62,"d":"62 Din."},{"v":100,"d":"100 Din."},{"$f":"Housing[Predviđeni trošak]-Housing[Stvarni trošak]","v":{"v":-38,"d":"38 Din."}},null,"Stvarni mesečni prihod"]
["Električna energija",{"v":44,"d":"44 Din."},{"v":125,"d":"125 Din."},{"$f":"Housing[Predviđeni trošak]-Housing[Stvarni trošak]","v":{"v":-81,"d":"81 Din."}},null,"Prihod 1",{"v":4000,"d":"4,000 Din."}]
["Benzin",{"v":22,"d":"22 Din."},{"v":35,"d":"35 Din."},{"$f":"Housing[Predviđeni trošak]-Housing[Stvarni trošak]","v":{"v":-13,"d":"13 Din."}},null,"Prihod 2",{"v":1200,"d":"1,200 Din."}]
["Voda i kanalizacija",{"v":8,"d":"8 Din."},{"v":8,"d":"8 Din."},{"$f":"Housing[Predviđeni trošak]-Housing[Stvarni trošak]","v":0},null,"Dodatni prihod",{"v":300,"d":"300 Din."}]
["Kablovska televizija",{"v":34,"d":"34 Din."},{"v":39,"d":"39 Din."},{"$f":"Housing[Predviđeni trošak]-Housing[Stvarni trošak]","v":{"v":-5,"d":"5 Din."}},null,"Ukupni mesečni prihod",{"$f":"SUM(G10:G12)","v":{"v":5500,"d":"5,500 Din."}}]
["Uklanjanje smeća",{"v":10,"d":"10 Din."},{"v":10,"d":"10 Din."},{"$f":"Housing[Predviđeni trošak]-Housing[Stvarni trošak]","v":0}]
["Održavanje ili popravke",{"v":23,"d":"23 Din."},0,{"$f":"Housing[Predviđeni trošak]-Housing[Stvarni trošak]","v":{"v":23,"d":"23 Din."}},null,"Predviđeni bilans\n",{"$f":"SUM(G7-B4)","v":{"v":4297,"d":"4,297 Din."}}]
["Zalihe",0,0,{"$f":"Housing[Predviđeni trošak]-Housing[Stvarni trošak]","v":0},null,"Stvarni bilans",{"$f":"SUM(G13-C4)","v":{"v":4183,"d":"4,183 Din."}}]
["Ostalo",0,0,{"$f":"Housing[Predviđeni trošak]-Housing[Stvarni trošak]","v":0},null,"Razlika",{"$f":"SUM(G16-G15)","v":{"v":-114,"d":"114 Din."}}]
["Zbir",{"$f":"SUBTOTAL(109,Housing[Predviđeni trošak])","v":{"v":1203,"d":"1,203 Din."}},{"$f":"SUBTOTAL(109,Housing[Stvarni trošak])","v":{"v":1317,"d":"1,317 Din."}},{"$f":"SUBTOTAL(109,Housing[Razlika])","v":{"v":-114,"d":"114 Din."}}]
[]
["Prevoz","Predviđeni trošak","Stvarni trošak","Razlika",null,"Krediti","Predviđeni trošak","Stvarni trošak","Razlika"]
["Rata za vozilo 1",null,null,{"$f":"Transportation[Predviđeni trošak]-Transportation[Stvarni trošak]","v":0},null,"Lično",null,null,{"$f":"Loans[Predviđeni trošak]-Loans[Stvarni trošak]","v":0}]
["Rata za vozilo 2",null,null,{"$f":"Transportation[Predviđeni trošak]-Transportation[Stvarni trošak]","v":0},null,"Troškovi studiranja",null,null,{"$f":"Loans[Predviđeni trošak]-Loans[Stvarni trošak]","v":0}]
["Troškovi vožnje autobusom/taksijem",null,null,{"$f":"Transportation[Predviđeni trošak]-Transportation[Stvarni trošak]","v":0},null,"Kreditna kartica",null,null,{"$f":"Loans[Predviđeni trošak]-Loans[Stvarni trošak]","v":0}]
["Osiguranje",null,null,{"$f":"Transportation[Predviđeni trošak]-Transportation[Stvarni trošak]","v":0},null,"Kreditna kartica",null,null,{"$f":"Loans[Predviđeni trošak]-Loans[Stvarni trošak]","v":0}]
["Licenciranje",null,null,{"$f":"Transportation[Predviđeni trošak]-Transportation[Stvarni trošak]","v":0},null,"Kreditna kartica",null,null,{"$f":"Loans[Predviđeni trošak]-Loans[Stvarni trošak]","v":0}]
["Gorivo",null,null,{"$f":"Transportation[Predviđeni trošak]-Transportation[Stvarni trošak]","v":0},null,"Ostalo",null,null,{"$f":"Loans[Predviđeni trošak]-Loans[Stvarni trošak]","v":0}]
["Održavanje",null,null,{"$f":"Transportation[Predviđeni trošak]-Transportation[Stvarni trošak]","v":0},null,"Zbir",{"$f":"SUBTOTAL(109,Loans[Predviđeni trošak])","v":0},{"$f":"SUBTOTAL(109,Loans[Stvarni trošak])","v":0},{"$f":"SUBTOTAL(109,Loans[Razlika])","v":0}]
["Ostalo",null,null,{"$f":"Transportation[Predviđeni trošak]-Transportation[Stvarni trošak]","v":0}]
["Zbir",{"$f":"SUBTOTAL(109,Transportation[Predviđeni trošak])","v":0},{"$f":"SUBTOTAL(109,Transportation[Stvarni trošak])","v":0},{"$f":"SUBTOTAL(109,Transportation[Razlika])","v":0},null,"Zabava","Predviđeni trošak","Stvarni trošak","Razlika"]
[{"$nulls":5},"Video/DVD",null,null,{"$f":"Entertainment[Predviđeni trošak]-Entertainment[Stvarni trošak]","v":0}]
["Osiguranje","Predviđeni trošak","Stvarni trošak","Razlika",null,"CD-ovi",null,null,{"$f":"Entertainment[Predviđeni trošak]-Entertainment[Stvarni trošak]","v":0}]
["Kuća",null,null,{"$f":"Insurance[Predviđeni trošak]-Insurance[Stvarni trošak]","v":0},null,"Filmovi",null,null,{"$f":"Entertainment[Predviđeni trošak]-Entertainment[Stvarni trošak]","v":0}]
["Zdravlje",null,null,{"$f":"Insurance[Predviđeni trošak]-Insurance[Stvarni trošak]","v":0},null,"Koncerti",null,null,{"$f":"Entertainment[Predviđeni trošak]-Entertainment[Stvarni trošak]","v":0}]
["Život",null,null,{"$f":"Insurance[Predviđeni trošak]-Insurance[Stvarni trošak]","v":0},null,"Sportski događaji",null,null,{"$f":"Entertainment[Predviđeni trošak]-Entertainment[Stvarni trošak]","v":0}]
["Ostalo",null,null,{"$f":"Insurance[Predviđeni trošak]-Insurance[Stvarni trošak]","v":0},null,"Pozorište",null,null,{"$f":"Entertainment[Predviđeni trošak]-Entertainment[Stvarni trošak]","v":0}]
["Zbir",{"$f":"SUBTOTAL(109,Insurance[Predviđeni trošak])","v":0},{"$f":"SUBTOTAL(109,Insurance[Stvarni trošak])","v":0},{"$f":"SUBTOTAL(109,Insurance[Razlika])","v":0},null,"Ostalo",null,null,{"$f":"Entertainment[Predviđeni trošak]-Entertainment[Stvarni trošak]","v":0}]
[{"$nulls":5},"Zbir",{"$f":"SUBTOTAL(109,Entertainment[Predviđeni trošak])","v":0},{"$f":"SUBTOTAL(109,Entertainment[Stvarni trošak])","v":0},{"$f":"SUBTOTAL(109,Entertainment[Razlika])","v":0}]
["Hrana","Predviđeni trošak","Stvarni trošak","Razlika"]
["Namirnice",null,null,{"$f":"Food[Predviđeni trošak]-Food[Stvarni trošak]","v":0},null,"Porezi","Predviđeni trošak","Stvarni trošak","Razlika"]
["Obedovanje van kuće",null,null,{"$f":"Food[Predviđeni trošak]-Food[Stvarni trošak]","v":0},null,"Savezno",null,null,{"$f":"Taxes[Predviđeni trošak]-Taxes[Stvarni trošak]","v":0}]
["Ostalo",null,null,{"$f":"Food[Predviđeni trošak]-Food[Stvarni trošak]","v":0},null,"Zemlja",null,null,{"$f":"Taxes[Predviđeni trošak]-Taxes[Stvarni trošak]","v":0}]
["Zbir",{"$f":"SUBTOTAL(109,Food[Predviđeni trošak])","v":0},{"$f":"SUBTOTAL(109,Food[Stvarni trošak])","v":0},{"$f":"SUBTOTAL(109,Food[Razlika])","v":0},null,"Lokalni porezi",null,null,{"$f":"Taxes[Predviđeni trošak]-Taxes[Stvarni trošak]","v":0}]
[{"$nulls":5},"Ostalo",null,null,{"$f":"Taxes[Predviđeni trošak]-Taxes[Stvarni trošak]","v":0}]
["Deca","Predviđeni trošak","Stvarni trošak","Razlika",null,"Zbir",{"$f":"SUBTOTAL(109,Taxes[Predviđeni trošak])","v":0},{"$f":"SUBTOTAL(109,Taxes[Stvarni trošak])","v":0},{"$f":"SUBTOTAL(109,Taxes[Razlika])","v":0}]
["Troškovi lečenja",null,null,{"$f":"Children[Predviđeni trošak]-Children[Stvarni trošak]","v":0}]
["Odeća",null,null,{"$f":"Children[Predviđeni trošak]-Children[Stvarni trošak]","v":0},null,"Lične potrebe","Predviđeni trošak","Stvarni trošak","Razlika"]
["Školarina",null,null,{"$f":"Children[Predviđeni trošak]-Children[Stvarni trošak]","v":0},null,"Troškovi lečenja",null,null,{"$f":"PersonalCare[Predviđeni trošak]-PersonalCare[Stvarni trošak]","v":0}]
["Školski pribor",null,null,{"$f":"Children[Predviđeni trošak]-Children[Stvarni trošak]","v":0},null,"Kosa/nokti",null,null,{"$f":"PersonalCare[Predviđeni trošak]-PersonalCare[Stvarni trošak]","v":0}]
["Dugovanja ili naknade u organizaciji",null,null,{"$f":"Children[Predviđeni trošak]-Children[Stvarni trošak]","v":0},null,"Odeća",null,null,{"$f":"PersonalCare[Predviđeni trošak]-PersonalCare[Stvarni trošak]","v":0}]
["Novac za užinu",null,null,{"$f":"Children[Predviđeni trošak]-Children[Stvarni trošak]","v":0},null,"Hemijsko čišćenje",null,null,{"$f":"PersonalCare[Predviđeni trošak]-PersonalCare[Stvarni trošak]","v":0}]
["Čuvanje dece",null,null,{"$f":"Children[Predviđeni trošak]-Children[Stvarni trošak]","v":0},null,"Zdravstveni klub",null,null,{"$f":"PersonalCare[Predviđeni trošak]-PersonalCare[Stvarni trošak]","v":0}]
["Igračke/igre",null,null,{"$f":"Children[Predviđeni trošak]-Children[Stvarni trošak]","v":0},null,"Dugovanja/naknade u organizaciji",null,null,{"$f":"PersonalCare[Predviđeni trošak]-PersonalCare[Stvarni trošak]","v":0}]
["Ostalo",null,null,{"$f":"Children[Predviđeni trošak]-Children[Stvarni trošak]","v":0},null,"Ostalo",null,null,{"$f":"PersonalCare[Predviđeni trošak]-PersonalCare[Stvarni trošak]","v":0}]
["Zbir",{"$f":"SUBTOTAL(109,Children[Predviđeni trošak])","v":0},{"$f":"SUBTOTAL(109,Children[Stvarni trošak])","v":0},{"$f":"SUBTOTAL(109,Children[Razlika])","v":0},null,"Zbir",{"$f":"SUBTOTAL(109,PersonalCare[Predviđeni trošak])","v":0},{"$f":"SUBTOTAL(109,PersonalCare[Stvarni trošak])","v":0},{"$f":"SUBTOTAL(109,PersonalCare[Razlika])","v":0}]
[]
["Pravno","Predviđeni trošak","Stvarni trošak","Razlika",null,"Kućni ljubimci","Predviđeni trošak","Stvarni trošak","Razlika"]
["Advokat",null,null,{"$f":"Legal[Predviđeni trošak]-Legal[Stvarni trošak]","v":0},null,"Hrana",null,null,{"$f":"Pets[Predviđeni trošak]-Pets[Stvarni trošak]","v":0}]
["Alimentacija",null,null,{"$f":"Legal[Predviđeni trošak]-Legal[Stvarni trošak]","v":0},null,"Troškovi lečenja",null,null,{"$f":"Pets[Predviđeni trošak]-Pets[Stvarni trošak]","v":0}]
["Rate",null,null,{"$f":"Legal[Predviđeni trošak]-Legal[Stvarni trošak]","v":0},null,"Doterivanje",null,null,{"$f":"Pets[Predviđeni trošak]-Pets[Stvarni trošak]","v":0}]
["Ostalo",null,null,{"$f":"Legal[Predviđeni trošak]-Legal[Stvarni trošak]","v":0},null,"Igračke",null,null,{"$f":"Pets[Predviđeni trošak]-Pets[Stvarni trošak]","v":0}]
["Zbir",{"$f":"SUBTOTAL(109,Legal[Predviđeni trošak])","v":0},{"$f":"SUBTOTAL(109,Legal[Stvarni trošak])","v":0},{"$f":"SUBTOTAL(109,Legal[Razlika])","v":0},null,"Ostalo",null,null,{"$f":"Pets[Predviđeni trošak]-Pets[Stvarni trošak]","v":0}]
[{"$nulls":5},"Zbir",{"$f":"SUBTOTAL(109,Pets[Predviđeni trošak])","v":0},{"$f":"SUBTOTAL(109,Pets[Stvarni trošak])","v":0},{"$f":"SUBTOTAL(109,Pets[Razlika])","v":0}]
["Ušteđevina/investicije","Predviđeni trošak","Stvarni trošak","Razlika"]
["Račun za penzione doprinose",null,null,{"$f":"Savings[Predviđeni trošak]-Savings[Stvarni trošak]","v":0},null,"Pokloni i donacije","Predviđeni trošak","Stvarni trošak","Razlika"]
["Investicioni račun",null,null,{"$f":"Savings[Predviđeni trošak]-Savings[Stvarni trošak]","v":0},null,"Dobrotvorna akcija 1",null,null,{"$f":"Gifts[Predviđeni trošak]-Gifts[Stvarni trošak]","v":0}]
["Fakultet",null,null,{"$f":"Savings[Predviđeni trošak]-Savings[Stvarni trošak]","v":0},null,"Dobrotvorna akcija 2",null,null,{"$f":"Gifts[Predviđeni trošak]-Gifts[Stvarni trošak]","v":0}]
["Ostalo",null,null,{"$f":"Savings[Predviđeni trošak]-Savings[Stvarni trošak]","v":0},null,"Dobrotvorna akcija 3",null,null,{"$f":"Gifts[Predviđeni trošak]-Gifts[Stvarni trošak]","v":0}]
["Zbir",{"$f":"SUBTOTAL(109,Savings[Predviđeni trošak])","v":0},{"$f":"SUBTOTAL(109,Savings[Stvarni trošak])","v":0},{"$f":"SUBTOTAL(109,Savings[Razlika])","v":0},null,"Zbir",{"$f":"SUBTOTAL(109,Gifts[Predviđeni trošak])","v":0},{"$f":"SUBTOTAL(109,Gifts[Stvarni trošak])","v":0},{"$f":"SUBTOTAL(109,Gifts[Razlika])","v":0}]